[Event "January 9 Late 2024"]
[Site "https://www.chess.com"]
[Date "2024.01.10"]
[Round "8"]
[White "Kostiukov, Alexandr"]
[Black "Nouali, Mohamed"]
[Result "0-1"]
[Board "131"]
[TimeControl "180+1"]
[WhiteFideId "14108100"]
[BlackFideId "5502462"]
[WhiteElo "2300"]
[BlackElo "2531"]
[WhiteTeam "UKR"]
[BlackTeam "TUN"]
[WhiteClock "0:01:08"]
[BlackClock "0:01:22"]

1. g3 {[%clk 0:03:00]}  h5 {[%clk 0:02:56]} 2. h4 {[%clk 0:03:00]}  d5 {[%clk 0:02:56]} 3. Bg2 {[%clk 0:02:59]}  Nf6 {[%clk 0:02:56]} 4. d3 {[%clk 0:03:00]}  Nc6 {[%clk 0:02:56]} 5. e4 {[%clk 0:02:59]}  dxe4 {[%clk 0:02:57]} 6. dxe4 {[%clk 0:03:00]}  Qxd1+ {[%clk 0:02:57]} 7. Kxd1 {[%clk 0:03:01]}  e5 {[%clk 0:02:55]} 8. f3 {[%clk 0:03:01]}  Bc5 {[%clk 0:02:54]} 9. Nd2 {[%clk 0:03:00]}  Be6 {[%clk 0:02:51]} 10. Bh3 {[%clk 0:03:00]}  Bxg1 {[%clk 0:02:47]} 11. Bxe6 {[%clk 0:02:59]}  Bf2 {[%clk 0:02:47]} 12. Bb3 {[%clk 0:02:48]}  Bxg3 {[%clk 0:02:46]} 13. Rg1 {[%clk 0:02:48]}  Bxh4 {[%clk 0:02:44]} 14. Rxg7 {[%clk 0:02:47]}  Nd8 {[%clk 0:02:26]} 15. Nc4 {[%clk 0:02:38]}  Kf8 {[%clk 0:02:26]} 16. Rg2 {[%clk 0:02:35]}  Nc6 {[%clk 0:02:24]} 17. Be3 {[%clk 0:02:32]}  Rd8+ {[%clk 0:02:19]} 18. Kc1 {[%clk 0:02:32]}  Rg8 {[%clk 0:02:03]} 19. Bc5+ {[%clk 0:02:16]}  Ke8 {[%clk 0:02:02]} 20. Rh2 {[%clk 0:02:07]}  Bg5+ {[%clk 0:01:47]} 21. Nd2 {[%clk 0:01:51]}  Bf4 {[%clk 0:01:38]} 22. Re2 {[%clk 0:01:40]}  Nd4 {[%clk 0:01:36]} 23. Bxd4 {[%clk 0:01:16]}  Rxd4 {[%clk 0:01:36]} 24. c3 {[%clk 0:01:14]}  Rg1+ {[%clk 0:01:29]} 25. Bd1 {[%clk 0:01:13]}  Rxd2 {[%clk 0:01:23]} 26. Rxd2 {[%clk 0:01:14]}  Rg2 {[%clk 0:01:23]} 27. Be2 {[%clk 0:01:08]}  Rxe2 {[%clk 0:01:22]} 0-1

[Event "January 9 Late 2024"]
[Site "https://www.chess.com"]
[Date "2024.01.09"]
[Round "8"]
[White "Romero Ruscalleda, Josep"]
[Black "Salman, Ilhan Serhat"]
[Result "0-1"]
[Board "133"]
[TimeControl "180+1"]
[WhiteFideId "2231859"]
[BlackFideId "6361579"]
[WhiteElo "2266"]
[BlackElo "2483"]
[WhiteTeam "ESP"]
[BlackTeam "TUR"]
[WhiteClock "0:01:21"]
[BlackClock "0:02:01"]

1. e4 {[%clk 0:03:00]}  d5 {[%clk 0:02:58]} 2. exd5 {[%clk 0:03:00]}  Qxd5 {[%clk 0:02:59]} 3. Nf3 {[%clk 0:03:00]}  Nf6 {[%clk 0:02:59]} 4. Nc3 {[%clk 0:02:59]}  Qa5 {[%clk 0:03:00]} 5. Bc4 {[%clk 0:02:59]}  Bg4 {[%clk 0:03:00]} 6. O-O {[%clk 0:02:52]}  Nc6 {[%clk 0:03:01]} 7. h3 {[%clk 0:02:52]}  Bh5 {[%clk 0:03:01]} 8. Re1 {[%clk 0:02:51]}  O-O-O {[%clk 0:03:00]} 9. Qe2 {[%clk 0:02:45]}  Nd4 {[%clk 0:03:00]} 10. Qe3 {[%clk 0:02:31]}  Nxc2 {[%clk 0:02:53]} 11. Qf4 {[%clk 0:02:25]}  Nxa1 {[%clk 0:02:49]} 12. Ne5 {[%clk 0:02:13]}  e6 {[%clk 0:02:47]} 13. g4 {[%clk 0:02:09]}  Bg6 {[%clk 0:02:46]} 14. g5 {[%clk 0:02:05]}  Nh5 {[%clk 0:02:40]} 15. Qf3 {[%clk 0:01:59]}  Nc2 {[%clk 0:02:38]} 16. Nxf7 {[%clk 0:01:58]}  Nxe1 {[%clk 0:02:31]} 17. Bxe6+ {[%clk 0:01:56]}  Kb8 {[%clk 0:02:30]} 18. Qg4 {[%clk 0:01:39]}  Bxf7 {[%clk 0:02:22]} 19. Bxf7 {[%clk 0:01:40]}  g6 {[%clk 0:02:20]} 20. d4 {[%clk 0:01:38]}  Nd3 {[%clk 0:02:19]} 21. Be3 {[%clk 0:01:36]}  Bb4 {[%clk 0:02:01]} 22. Ne4 {[%clk 0:01:21]}  Qf5 {[%clk 0:02:01]} 0-1

[Event "January 9 Late 2024"]
[Site "https://www.chess.com"]
[Date "2024.01.09"]
[Round "8"]
[White "Varela La Madrid, Maria"]
[Black "Czerw, Dawid"]
[Result "0-1"]
[Board "137"]
[TimeControl "180+1"]
[WhiteFideId "3903346"]
[BlackFideId "1145746"]
[WhiteElo "2198"]
[BlackElo "2457"]
[WhiteTeam "VEN"]
[BlackTeam "POL"]
[WhiteClock "0:00:02"]
[BlackClock "0:01:22"]

1. d4 {[%clk 0:02:54]}  d5 {[%clk 0:02:59]} 2. c4 {[%clk 0:02:54]}  c6 {[%clk 0:02:59]} 3. Nf3 {[%clk 0:02:53]}  Nf6 {[%clk 0:02:59]} 4. cxd5 {[%clk 0:02:54]}  cxd5 {[%clk 0:03:00]} 5. Nc3 {[%clk 0:02:54]}  Nc6 {[%clk 0:03:00]} 6. Bf4 {[%clk 0:02:55]}  a6 {[%clk 0:03:00]} 7. Rc1 {[%clk 0:02:54]}  Bg4 {[%clk 0:02:59]} 8. Ne5 {[%clk 0:02:54]}  Bd7 {[%clk 0:02:57]} 9. Nxd7 {[%clk 0:02:41]}  Qxd7 {[%clk 0:02:58]} 10. e3 {[%clk 0:02:31]}  e6 {[%clk 0:02:51]} 11. Be2 {[%clk 0:02:24]}  Bd6 {[%clk 0:02:48]} 12. Bxd6 {[%clk 0:02:24]}  Qxd6 {[%clk 0:02:49]} 13. O-O {[%clk 0:02:24]}  O-O {[%clk 0:02:48]} 14. a3 {[%clk 0:02:21]}  b5 {[%clk 0:02:44]} 15. a4 {[%clk 0:01:50]}  b4 {[%clk 0:02:42]} 16. Nb1 {[%clk 0:01:49]}  Rfc8 {[%clk 0:02:38]} 17. Bd3 {[%clk 0:01:33]}  Na5 {[%clk 0:02:28]} 18. Qe2 {[%clk 0:01:31]}  Rxc1 {[%clk 0:02:09]} 19. Rxc1 {[%clk 0:01:32]}  Nb3 {[%clk 0:02:08]} 20. Rc2 {[%clk 0:01:22]}  a5 {[%clk 0:02:06]} 21. Bb5 {[%clk 0:01:10]}  Qf8 {[%clk 0:01:48]} 22. Qd3 {[%clk 0:00:53]}  Na1 {[%clk 0:01:46]} 23. Rc6 {[%clk 0:00:24]}  Rc8 {[%clk 0:01:41]} 24. Nd2 {[%clk 0:00:13]}  Rxc6 {[%clk 0:01:41]} 25. Bxc6 {[%clk 0:00:14]}  b3 {[%clk 0:01:33]} 26. Qb5 {[%clk 0:00:12]}  Qc8 {[%clk 0:01:23]} 27. Nxb3 {[%clk 0:00:11]}  Nxb3 {[%clk 0:01:21]} 28. Qxb3 {[%clk 0:00:02]}  Qxc6 {[%clk 0:01:22]} 0-1

[Event "January 9 Late 2024"]
[Site "https://www.chess.com"]
[Date "2024.01.09"]
[Round "8"]
[White "Eggleston, Thomas A"]
[Black "Rubio Tent, Francisco"]
[Result "1-0"]
[Board "143"]
[TimeControl "180+1"]
[WhiteFideId "412139"]
[BlackFideId "2238233"]
[WhiteElo "2258"]
[BlackElo "2404"]
[WhiteTeam "ENG"]
[BlackTeam "ESP"]
[WhiteClock "0:00:18"]
[BlackClock "0:00:09"]

1. e4 {[%clk 0:03:00]}  c5 {[%clk 0:02:54]} 2. Nf3 {[%clk 0:03:00]}  Nc6 {[%clk 0:02:55]} 3. g3 {[%clk 0:02:58]}  g6 {[%clk 0:02:54]} 4. Bg2 {[%clk 0:02:58]}  Bg7 {[%clk 0:02:54]} 5. O-O {[%clk 0:02:58]}  e5 {[%clk 0:02:54]} 6. a3 {[%clk 0:02:54]}  Nge7 {[%clk 0:02:51]} 7. b4 {[%clk 0:02:53]}  b6 {[%clk 0:02:46]} 8. c3 {[%clk 0:02:48]}  O-O {[%clk 0:02:40]} 9. b5 {[%clk 0:02:48]}  Nb8 {[%clk 0:02:36]} 10. d4 {[%clk 0:02:47]}  d6 {[%clk 0:02:35]} 11. Bb2 {[%clk 0:02:41]}  Bb7 {[%clk 0:02:26]} 12. Nbd2 {[%clk 0:02:37]}  Nd7 {[%clk 0:02:14]} 13. Re1 {[%clk 0:02:36]}  a6 {[%clk 0:01:39]} 14. a4 {[%clk 0:02:35]}  Qc7 {[%clk 0:01:30]} 15. dxe5 {[%clk 0:02:20]}  dxe5 {[%clk 0:01:28]} 16. Nc4 {[%clk 0:02:16]}  Rfd8 {[%clk 0:01:24]} 17. Qd6 {[%clk 0:02:12]}  Qxd6 {[%clk 0:00:47]} 18. Nxd6 {[%clk 0:02:11]}  Bc8 {[%clk 0:00:45]} 19. Ng5 {[%clk 0:01:59]}  Nf6 {[%clk 0:00:28]} 20. Ndxf7 {[%clk 0:01:49]}  Rd2 {[%clk 0:00:27]} 21. Bc1 {[%clk 0:01:49]}  Rc2 {[%clk 0:00:27]} 22. Nxe5 {[%clk 0:01:36]}  axb5 {[%clk 0:00:24]} 23. Nd3 {[%clk 0:01:30]}  Rxa4 {[%clk 0:00:24]} 24. Rb1 {[%clk 0:01:25]}  Rxc3 {[%clk 0:00:21]} 25. Nf4 {[%clk 0:01:21]}  b4 {[%clk 0:00:19]} 26. Bb2 {[%clk 0:01:07]}  Rc2 {[%clk 0:00:18]} 27. e5 {[%clk 0:01:02]}  Ng4 {[%clk 0:00:18]} 28. Nd5 {[%clk 0:00:47]}  Nf5 {[%clk 0:00:12]} 29. f4 {[%clk 0:00:38]}  Ra2 {[%clk 0:00:11]} 30. Nf6+ {[%clk 0:00:20]}  Bxf6 {[%clk 0:00:10]} 31. exf6 {[%clk 0:00:20]}  Raxb2 {[%clk 0:00:09]} 32. Re8# {[%clk 0:00:18]} 1-0

[Event "January 9 Late 2024"]
[Site "https://www.chess.com"]
[Date "2024.01.09"]
[Round "8"]
[White "Carre, Sylvain"]
[Black "Cardozo Munar, Carlos Eduardo"]
[Result "0-1"]
[Board "147"]
[TimeControl "180+1"]
[WhiteFideId "642118"]
[BlackFideId "4409477"]
[WhiteElo "2351"]
[BlackElo "2220"]
[WhiteTeam "FRA"]
[BlackTeam "COL"]
[WhiteClock "0:00:16"]
[BlackClock "0:00:21"]

1. d4 {[%clk 0:03:00]}  d5 {[%clk 0:02:59]} 2. Bf4 {[%clk 0:03:01]}  e6 {[%clk 0:02:59]} 3. e3 {[%clk 0:03:02]}  Bd6 {[%clk 0:03:00]} 4. Bg3 {[%clk 0:03:01]}  Nf6 {[%clk 0:03:00]} 5. Nd2 {[%clk 0:03:01]}  Qe7 {[%clk 0:03:00]} 6. Ngf3 {[%clk 0:03:02]}  Nbd7 {[%clk 0:03:01]} 7. Ne5 {[%clk 0:03:01]}  O-O {[%clk 0:03:01]} 8. Bd3 {[%clk 0:03:01]}  g6 {[%clk 0:02:57]} 9. f4 {[%clk 0:03:01]}  Nh5 {[%clk 0:02:54]} 10. Qf3 {[%clk 0:03:01]}  f6 {[%clk 0:02:53]} 11. Nxg6 {[%clk 0:02:53]}  hxg6 {[%clk 0:02:52]} 12. Bxg6 {[%clk 0:02:54]}  Ng7 {[%clk 0:02:40]} 13. h4 {[%clk 0:02:54]}  e5 {[%clk 0:02:35]} 14. Qxd5+ {[%clk 0:02:47]}  Qe6 {[%clk 0:02:32]} 15. Qxe6+ {[%clk 0:02:42]}  Nxe6 {[%clk 0:02:33]} 16. f5 {[%clk 0:02:37]}  Ng7 {[%clk 0:02:24]} 17. Ne4 {[%clk 0:02:21]}  Nb6 {[%clk 0:02:12]} 18. O-O {[%clk 0:02:12]}  Nd5 {[%clk 0:02:11]} 19. Rae1 {[%clk 0:02:07]}  Ne7 {[%clk 0:02:10]} 20. Nxf6+ {[%clk 0:01:51]}  Rxf6 {[%clk 0:02:05]} 21. dxe5 {[%clk 0:01:52]}  Nxg6 {[%clk 0:01:55]} 22. exf6 {[%clk 0:01:44]}  Bxg3 {[%clk 0:01:55]} 23. fxg6 {[%clk 0:01:39]}  Bxe1 {[%clk 0:01:51]} 24. Rxe1 {[%clk 0:01:32]}  Nh5 {[%clk 0:01:48]} 25. f7+ {[%clk 0:01:16]}  Kg7 {[%clk 0:01:47]} 26. Rd1 {[%clk 0:00:48]}  Be6 {[%clk 0:01:47]} 27. Rd4 {[%clk 0:00:48]}  Kxg6 {[%clk 0:01:40]} 28. g4 {[%clk 0:00:48]}  Nf6 {[%clk 0:01:01]} 29. g5 {[%clk 0:00:42]}  Nd5 {[%clk 0:00:57]} 30. e4 {[%clk 0:00:40]}  Nf4 {[%clk 0:00:57]} 31. Rd2 {[%clk 0:00:36]}  Rf8 {[%clk 0:00:54]} 32. Kf2 {[%clk 0:00:33]}  Rxf7 {[%clk 0:00:54]} 33. Ke3 {[%clk 0:00:33]}  Nh5 {[%clk 0:00:45]} 34. Rd8 {[%clk 0:00:26]}  Re7 {[%clk 0:00:43]} 35. Rb8 {[%clk 0:00:18]}  Bd5 {[%clk 0:00:40]} 36. Ra8 {[%clk 0:00:15]}  Bxe4 {[%clk 0:00:40]} 37. Kd4 {[%clk 0:00:14]}  a6 {[%clk 0:00:39]} 38. Ra7 {[%clk 0:00:14]}  Bc6 {[%clk 0:00:39]} 39. c4 {[%clk 0:00:13]}  Re8 {[%clk 0:00:38]} 40. b4 {[%clk 0:00:13]}  Ng7 {[%clk 0:00:38]} 41. a4 {[%clk 0:00:12]}  Ne6+ {[%clk 0:00:38]} 42. Kc3 {[%clk 0:00:13]}  Rd8 {[%clk 0:00:34]} 43. b5 {[%clk 0:00:13]}  axb5 {[%clk 0:00:34]} 44. cxb5 {[%clk 0:00:13]}  Be4 {[%clk 0:00:35]} 45. a5 {[%clk 0:00:13]}  Rd3+ {[%clk 0:00:31]} 46. Kc4 {[%clk 0:00:13]}  Rd8 {[%clk 0:00:28]} 47. a6 {[%clk 0:00:13]}  bxa6 {[%clk 0:00:28]} 48. bxa6 {[%clk 0:00:13]}  Ra8 {[%clk 0:00:27]} 49. Rxa8 {[%clk 0:00:13]}  Bxa8 {[%clk 0:00:28]} 50. a7 {[%clk 0:00:13]}  Nxg5 {[%clk 0:00:20]} 51. hxg5 {[%clk 0:00:13]}  Kxg5 {[%clk 0:00:20]} 52. Kd4 {[%clk 0:00:13]}  Kf6 {[%clk 0:00:21]} 53. Kc5 {[%clk 0:00:14]}  Ke7 {[%clk 0:00:21]} 54. Kb5 {[%clk 0:00:15]}  Kd6 {[%clk 0:00:21]} 55. Ka6 {[%clk 0:00:16]}  c5 {[%clk 0:00:21]} 56. Kb5 {[%clk 0:00:16]}  Kd5 {[%clk 0:00:21]} 57. Kb6 {[%clk 0:00:16]}  Kd4 {[%clk 0:00:21]} 58. Kc7 {[%clk 0:00:16]}  c4 {[%clk 0:00:22]} 59. Kb8 {[%clk 0:00:17]}  Bg2 {[%clk 0:00:22]} 60. Kc7 {[%clk 0:00:16]}  c3 {[%clk 0:00:22]} 61. a8=Q {[%clk 0:00:16]}  Bxa8 {[%clk 0:00:21]} 0-1

[Event "January 9 Late 2024"]
[Site "https://www.chess.com"]
[Date "2024.01.09"]
[Round "8"]
[White "Mesa Cruz, Juan Carlos"]
[Black "Jing, Andrew"]
[Result "0-1"]
[Board "149"]
[TimeControl "180+1"]
[WhiteFideId "6423400"]
[BlackFideId "30984076"]
[WhiteElo "2340"]
[BlackElo "2165"]
[WhiteTeam "DOM"]
[BlackTeam "USA"]
[WhiteClock "0:00:07"]
[BlackClock "0:01:03"]

1. e4 {[%clk 0:03:00]}  e5 {[%clk 0:02:59]} 2. Nf3 {[%clk 0:02:42]}  Nc6 {[%clk 0:02:56]} 3. Bc4 {[%clk 0:02:33]}  Nf6 {[%clk 0:02:52]} 4. d3 {[%clk 0:02:28]}  Bc5 {[%clk 0:02:42]} 5. c3 {[%clk 0:02:27]}  a6 {[%clk 0:02:38]} 6. b4 {[%clk 0:02:24]}  Ba7 {[%clk 0:02:38]} 7. a4 {[%clk 0:02:22]}  d6 {[%clk 0:02:37]} 8. Nbd2 {[%clk 0:02:19]}  O-O {[%clk 0:02:37]} 9. Nf1 {[%clk 0:02:15]}  Ne7 {[%clk 0:02:36]} 10. Ng3 {[%clk 0:02:13]}  d5 {[%clk 0:02:35]} 11. Bb3 {[%clk 0:02:06]}  Ng6 {[%clk 0:02:34]} 12. O-O {[%clk 0:02:04]}  c6 {[%clk 0:02:32]} 13. Bg5 {[%clk 0:01:55]}  Be6 {[%clk 0:02:28]} 14. Nh5 {[%clk 0:01:45]}  dxe4 {[%clk 0:02:21]} 15. Bxf6 {[%clk 0:01:39]}  gxf6 {[%clk 0:02:17]} 16. dxe4 {[%clk 0:01:30]}  Qxd1 {[%clk 0:02:15]} 17. Bxd1 {[%clk 0:01:30]}  f5 {[%clk 0:02:13]} 18. exf5 {[%clk 0:01:21]}  Bxf5 {[%clk 0:02:13]} 19. Ng3 {[%clk 0:01:21]}  Be6 {[%clk 0:02:10]} 20. Re1 {[%clk 0:01:14]}  f6 {[%clk 0:02:05]} 21. Bc2 {[%clk 0:01:04]}  Nf4 {[%clk 0:01:50]} 22. a5 {[%clk 0:00:45]}  Rad8 {[%clk 0:01:46]} 23. Rad1 {[%clk 0:00:40]}  Bc4 {[%clk 0:01:42]} 24. Ne4 {[%clk 0:00:26]}  Kg7 {[%clk 0:01:38]} 25. Nh4 {[%clk 0:00:25]}  Rxd1 {[%clk 0:01:35]} 26. Rxd1 {[%clk 0:00:20]}  Be6 {[%clk 0:01:34]} 27. g3 {[%clk 0:00:17]}  Ne2+ {[%clk 0:01:27]} 28. Kf1 {[%clk 0:00:14]}  Bc4 {[%clk 0:01:26]} 29. Bd3 {[%clk 0:00:14]}  Bxd3 {[%clk 0:01:26]} 30. Rxd3 {[%clk 0:00:15]}  f5 {[%clk 0:01:21]} 31. Rd7+ {[%clk 0:00:13]}  Kh6 {[%clk 0:01:21]} 32. Nd6 {[%clk 0:00:13]}  Nxc3 {[%clk 0:01:20]} 33. Ndxf5+ {[%clk 0:00:12]}  Kg5 {[%clk 0:01:19]} 34. Rg7+ {[%clk 0:00:10]}  Kf6 {[%clk 0:01:17]} 35. Rxb7 {[%clk 0:00:11]}  Bd4 {[%clk 0:01:15]} 36. Rxh7 {[%clk 0:00:10]}  Ne4 {[%clk 0:01:13]} 37. Rh6+ {[%clk 0:00:10]}  Kg5 {[%clk 0:01:13]} 38. Rxc6 {[%clk 0:00:08]}  Nxf2 {[%clk 0:01:12]} 39. Ne7 {[%clk 0:00:08]}  Ng4+ {[%clk 0:01:11]} 40. Ke2 {[%clk 0:00:08]}  Rf2+ {[%clk 0:01:10]} 41. Kd3 {[%clk 0:00:09]}  Nxh2 {[%clk 0:01:10]} 42. Rg6+ {[%clk 0:00:08]}  Kh5 {[%clk 0:01:10]} 43. Rd6 {[%clk 0:00:08]}  Nf3 {[%clk 0:01:08]} 44. Nhf5 {[%clk 0:00:08]}  Rd2+ {[%clk 0:01:06]} 45. Ke4 {[%clk 0:00:08]}  Ng5+ {[%clk 0:01:07]} 46. Kd5 {[%clk 0:00:07]}  Bc3+ {[%clk 0:01:06]} 47. Kc6 {[%clk 0:00:07]}  Rxd6+ {[%clk 0:01:05]} 48. Nxd6 {[%clk 0:00:08]}  Bxb4 {[%clk 0:01:05]} 49. Nc4 {[%clk 0:00:08]}  e4 {[%clk 0:01:05]} 50. Nd5 {[%clk 0:00:08]}  Be1 {[%clk 0:01:04]} 51. Nc7 {[%clk 0:00:08]}  Bxg3 {[%clk 0:01:04]} 52. Kd5 {[%clk 0:00:08]}  Bxc7 {[%clk 0:01:04]} 53. Kc6 {[%clk 0:00:08]}  Bxa5 {[%clk 0:01:01]} 54. Nxa5 {[%clk 0:00:07]}  e3 {[%clk 0:01:02]} 55. Nb3 {[%clk 0:00:07]}  e2 {[%clk 0:01:02]} 56. Kb6 {[%clk 0:00:06]}  e1=Q {[%clk 0:01:02]} 57. Kxa6 {[%clk 0:00:07]}  Qb4 {[%clk 0:01:03]} 58. Na5 {[%clk 0:00:07]}  Ne6 {[%clk 0:01:02]} 59. Nc6 {[%clk 0:00:07]}  Nc5+ {[%clk 0:01:02]} 60. Ka7 {[%clk 0:00:07]}  Qb7# {[%clk 0:01:03]} 0-1

[Event "January 9 Late 2024"]
[Site "https://www.chess.com"]
[Date "2024.01.09"]
[Round "8"]
[White "Bonin, Jay"]
[Black "Curtis, John"]
[Result "1-0"]
[Board "152"]
[TimeControl "180+1"]
[WhiteFideId "2000644"]
[BlackFideId "3200256"]
[WhiteElo "2316"]
[BlackElo "2126"]
[WhiteTeam "USA"]
[BlackTeam "AUS"]
[WhiteClock "0:01:14"]
[BlackClock "0:00:00"]

1. d4 {[%clk 0:02:52]}  Nf6 {[%clk 0:02:52]} 2. Nf3 {[%clk 0:02:52]}  g6 {[%clk 0:02:51]} 3. c4 {[%clk 0:02:52]}  Bg7 {[%clk 0:02:51]} 4. Nc3 {[%clk 0:02:51]}  O-O {[%clk 0:02:47]} 5. e4 {[%clk 0:02:50]}  d6 {[%clk 0:02:47]} 6. Be2 {[%clk 0:02:49]}  Bg4 {[%clk 0:02:45]} 7. Be3 {[%clk 0:02:48]}  Nfd7 {[%clk 0:02:31]} 8. Ng1 {[%clk 0:02:38]}  Bxe2 {[%clk 0:02:30]} 9. Ngxe2 {[%clk 0:02:35]}  c5 {[%clk 0:02:29]} 10. f3 {[%clk 0:02:32]}  Nc6 {[%clk 0:02:27]} 11. Qd2 {[%clk 0:02:30]}  cxd4 {[%clk 0:02:25]} 12. Nxd4 {[%clk 0:02:29]}  Nxd4 {[%clk 0:02:15]} 13. Bxd4 {[%clk 0:02:28]}  Ne5 {[%clk 0:01:59]} 14. b3 {[%clk 0:02:25]}  a6 {[%clk 0:01:49]} 15. O-O {[%clk 0:02:23]}  f6 {[%clk 0:01:15]} 16. Rad1 {[%clk 0:02:14]}  Nc6 {[%clk 0:01:15]} 17. Be3 {[%clk 0:02:12]}  f5 {[%clk 0:01:15]} 18. exf5 {[%clk 0:02:00]}  gxf5 {[%clk 0:01:14]} 19. Nd5 {[%clk 0:01:59]}  Rf7 {[%clk 0:00:56]} 20. Rfe1 {[%clk 0:01:55]}  Qf8 {[%clk 0:00:42]} 21. Nc7 {[%clk 0:01:50]}  Rc8 {[%clk 0:00:38]} 22. Ne6 {[%clk 0:01:50]}  Qe8 {[%clk 0:00:37]} 23. Bh6 {[%clk 0:01:44]}  Bf6 {[%clk 0:00:21]} 24. Qf4 {[%clk 0:01:37]}  Qd7 {[%clk 0:00:12]} 25. Rd5 {[%clk 0:01:32]}  Be5 {[%clk 0:00:07]} 26. Qg5+ {[%clk 0:01:23]}  Kh8 {[%clk 0:00:03]} 27. Rexe5 {[%clk 0:01:20]}  Rg8 {[%clk 0:00:03]} 28. Bg7+ {[%clk 0:01:14]}  Rgxg7 {[%clk 0:00:00]} 29. Nxg7 {[%clk 0:01:14]} 1-0

[Event "January 9 Late 2024"]
[Site "https://www.chess.com"]
[Date "2024.01.09"]
[Round "8"]
[White "Yushko, Olga"]
[Black "Sultanbek, Zeinep"]
[Result "0-1"]
[Board "154"]
[TimeControl "180+1"]
[WhiteFideId "14114500"]
[BlackFideId "13710419"]
[WhiteElo "2118"]
[BlackElo "2303"]
[WhiteTeam "UKR"]
[BlackTeam "KAZ"]
[WhiteClock "0:00:15"]
[BlackClock "0:00:09"]

1. d4 {[%clk 0:03:00]}  d5 {[%clk 0:02:52]} 2. c4 {[%clk 0:03:00]}  e6 {[%clk 0:02:52]} 3. Nc3 {[%clk 0:02:57]}  Nf6 {[%clk 0:02:52]} 4. Bg5 {[%clk 0:02:56]}  Be7 {[%clk 0:02:51]} 5. cxd5 {[%clk 0:02:56]}  exd5 {[%clk 0:02:51]} 6. e3 {[%clk 0:02:55]}  c6 {[%clk 0:02:49]} 7. Qc2 {[%clk 0:02:54]}  Nbd7 {[%clk 0:02:48]} 8. Bd3 {[%clk 0:02:54]}  h6 {[%clk 0:02:48]} 9. Bh4 {[%clk 0:02:54]}  Nh5 {[%clk 0:02:49]} 10. Bxe7 {[%clk 0:02:52]}  Qxe7 {[%clk 0:02:49]} 11. Nge2 {[%clk 0:02:48]}  Nb6 {[%clk 0:02:48]} 12. O-O {[%clk 0:02:47]}  O-O {[%clk 0:02:48]} 13. Rab1 {[%clk 0:02:39]}  f5 {[%clk 0:02:16]} 14. b4 {[%clk 0:02:38]}  f4 {[%clk 0:02:15]} 15. Bg6 {[%clk 0:02:28]}  f3 {[%clk 0:01:19]} 16. Bxh5 {[%clk 0:02:26]}  Bf5 {[%clk 0:01:19]} 17. e4 {[%clk 0:02:11]}  fxe2 {[%clk 0:01:14]} 18. exf5 {[%clk 0:01:51]}  exf1=Q+ {[%clk 0:01:13]} 19. Rxf1 {[%clk 0:01:52]}  Qg5 {[%clk 0:01:08]} 20. Bg6 {[%clk 0:01:49]}  Nc8 {[%clk 0:01:07]} 21. Qe2 {[%clk 0:01:44]}  Qf6 {[%clk 0:01:05]} 22. Re1 {[%clk 0:01:41]}  Qxd4 {[%clk 0:00:48]} 23. Qe6+ {[%clk 0:01:39]}  Kh8 {[%clk 0:00:47]} 24. Ne2 {[%clk 0:01:32]}  Qxb4 {[%clk 0:00:38]} 25. Ng3 {[%clk 0:01:32]}  Nd6 {[%clk 0:00:35]} 26. Qe7 {[%clk 0:01:27]}  Rae8 {[%clk 0:00:26]} 27. Bxe8 {[%clk 0:01:23]}  Rxe8 {[%clk 0:00:25]} 28. Qxe8+ {[%clk 0:01:23]}  Nxe8 {[%clk 0:00:26]} 29. Rxe8+ {[%clk 0:01:24]}  Kh7 {[%clk 0:00:26]} 30. h3 {[%clk 0:01:14]}  d4 {[%clk 0:00:26]} 31. Rd8 {[%clk 0:01:05]}  Qe1+ {[%clk 0:00:21]} 32. Nf1 {[%clk 0:01:04]}  c5 {[%clk 0:00:21]} 33. Rd7 {[%clk 0:01:04]}  Qe5 {[%clk 0:00:17]} 34. g4 {[%clk 0:00:55]}  c4 {[%clk 0:00:17]} 35. Nd2 {[%clk 0:00:49]}  Qe1+ {[%clk 0:00:13]} 36. Nf1 {[%clk 0:00:50]}  d3 {[%clk 0:00:06]} 37. f6 {[%clk 0:00:50]}  Kg8 {[%clk 0:00:05]} 38. Rxg7+ {[%clk 0:00:43]}  Kf8 {[%clk 0:00:05]} 39. Rd7 {[%clk 0:00:40]}  b5 {[%clk 0:00:05]} 40. Kg2 {[%clk 0:00:38]}  b4 {[%clk 0:00:04]} 41. Ne3 {[%clk 0:00:24]}  b3 {[%clk 0:00:05]} 42. axb3 {[%clk 0:00:24]}  cxb3 {[%clk 0:00:05]} 43. Rxd3 {[%clk 0:00:24]}  b2 {[%clk 0:00:05]} 44. Rb3 {[%clk 0:00:22]}  b1=Q {[%clk 0:00:06]} 45. Rxb1 {[%clk 0:00:21]}  Qxb1 {[%clk 0:00:07]} 46. Nf5 {[%clk 0:00:20]}  Qxf5 {[%clk 0:00:05]} 47. gxf5 {[%clk 0:00:19]}  a5 {[%clk 0:00:05]} 48. Kg3 {[%clk 0:00:14]}  a4 {[%clk 0:00:06]} 49. Kg4 {[%clk 0:00:15]}  a3 {[%clk 0:00:06]} 50. Kh5 {[%clk 0:00:16]}  a2 {[%clk 0:00:06]} 51. Kxh6 {[%clk 0:00:15]}  Kf7 {[%clk 0:00:07]} 52. h4 {[%clk 0:00:14]}  a1=Q {[%clk 0:00:07]} 53. h5 {[%clk 0:00:15]}  Qxf6+ {[%clk 0:00:08]} 54. Kh7 {[%clk 0:00:15]}  Qg7# {[%clk 0:00:09]} 0-1